{"text_format":"1","workbook":"xlsx","n_sheets":1,"sheets":["基本データ"],"not_rendered":{"charts":0,"images":0,"macros":1,"external_links":0,"defined_names":3,"comments":0,"pivot_tables":0},"unopened":[],"bounds":{"document_bytes":16777216,"sheet_cells":100000,"rows_first":2000,"rows_last":500,"rows_between":2000,"halvings":0,"cell_chars":16384,"cell_head_chars":4096},"cells_cut":0,"cells_raw":0,"read":"whole","date_system":"1900"}

{"sheet":"基本データ","index":0,"n_rows":224,"n_cols":18,"rows_kept":224,"cut":false,"hidden":false,"merged":[[1,4,1,14],[3,1,3,2],[3,10,3,13],[3,14,5,14],[4,13,5,13],[4,16,5,16],[4,5,5,5],[3,0,5,0],[3,15,5,15],[4,1,5,1],[4,2,5,2],[4,3,5,3],[4,4,5,4],[4,6,5,6],[4,7,5,7],[4,8,5,8],[4,10,5,10],[4,11,5,11],[3,3,3,9],[4,9,5,9]]}
[]
[null,null,"様式第1号",null,"現　地　調　査　箇　所　兼　調　査　業　務　報　告　書　（一　覧　表）"]
[]
["印刷番号","区　　　　　　分",null,"　貸　　・　　道　　・　　指　　・　　他　　　・　　基　金　地　　　・　　借　受　地",null,null,null,null,null,null,"調査結果（処理を要するもの）",null,null,null,"調査\n月日","⑤使用状況及び詳細欄"]
[null,"整理番号","口座番号","所在図番号","土　地　の　所　在","代表地番","地　　　番","地　　　積","Ｒ","備　　考","（１）境界標","②樹木越境","③柵","④不法投棄",null,null,"区コード"]
[null,null,null,null,null,null,null,null,null,null,null,null,"単管柵・木柵"]
[1,null,null,null,null,null,null,null,null,null,null,null,null,null,null,null,10,{"$f":"IF(O7<>0,1,2)","v":2}]
[2,null,null,null,null,null,null,null,null,null,null,null,null,null,null,null,10,{"$f":"IF(O8<>0,1,2)","v":2}]
[3,null,null,null,null,null,null,null,null,null,null,null,null,null,null,null,10,2]
[4,null,null,null,null,null,null,null,null,null,null,null,null,null,null,null,10,2]
[5,null,null,null,null,null,null,null,null,null,null,null,null,null,null,null,10,2]
[6,null,null,null,null,null,null,null,null,null,null,null,null,null,null,null,10,2]
[7,null,null,null,null,null,null,null,null,null,null,null,null,null,null,null,10,2]
[8,null,null,null,null,null,null,null,null,null,null,null,null,null,null,null,10,2]
[9,null,null,null,null,null,null,null,null,null,null,null,null,null,null,null,10,2]
[10,null,null,null,null,null,null,null,null,null,null,null,null,null,null,null,10,2]
[11,null,null,null,null,null,null,null,null,null,null,null,null,null,null,null,10,2]
[12,null,null,null,null,null,null,null,null,null,null,null,null,null,null,null,10,2]
[13,null,null,null,null,null,null,null,null,null,null,null,null,null,null,null,10,2]
[14,null,null,null,null,null,null,null,null,null,null,null,null,null,null,null,10,2]
[15,null,null,null,null,null,null,null,null,null,null,null,null,null,null,null,10,2]
[16,null,null,null,null,null,null,null,null,null,null,null,null,null,null,null,10,2]
[17,null,null,null,null,null,null,null,null,null,null,null,null,null,null,null,10,2]
[18,null,null,null,null,null,null,null,null,null,null,null,null,null,null,null,10,2]
[19,null,null,null,null,null,null,null,null,null,null,null,null,null,null,null,10,2]
[20,null,null,null,null,null,null,null,null,null,null,null,null,null,null,null,10,2]
[21,null,null,null,null,null,null,null,null,null,null,null,"  ",null,null,null,10,2]
[22,null,null,null,null,null,null,null,null,null,null,null,null,null,null,null,10,2]
[23,null,null,null,null,null,null,null,null,null,null,null,null,null,null,null,10,2]
[24,null,null,null,null,null,null,null,null,null,null,null,null,null,null,null,10,2]
[25,null,null,null,null,null,null,null,null,null,null,null,null,null,null,null,10,2]
[26,null,null,null,null,null,null,null,null,null,null,null,null,null,null,null,10,2]
[27,null,null,null,null,null,null,null,null,null,null,null,null,null,null,null,10,2]
[28,null,null,null,null,null,null,null,null,null,null,null,null,null,null,null,10,2]
[29,null,null,null,null,null,null,null,null,null,null,null,null,null,null,null,10,2]
[30,null,null,null,null,null,null,null,null,null,null,null,null,null,null,null,20,2]
[31,null,null,null,null,null,null,null,null,null,null,null,null,null,null,null,20,2]
[32,null,null,null,null,null,null,null,null,null,null,null,null,null,null,null,20,2]
[33,null,null,null,null,null,null,null,null,null,null,null,null,null,null,null,20,2]
[34,null,null,null,null,null,null,null,null,null,null,null,null,null,null,null,20,2]
[35,null,null,null,null,null,null,null,null,null,null,null,null,null,null,null,20,2]
[36,null,null,null,null,null,null,null,null,null,null,null,null,null,null,null,20,2]
[37,null,null,null,null,null,null,null,null,null,null,null,null,null,null,null,20,2]
[38,null,null,null,null,null,null,null,null,null,null,null,null,null,null,null,20,2]
[39,null,null,null,null,null,null,null,null,null,null,null,null,null,null,null,20,2]
[40,null,null,null,null,null,null,null,null,null,null,null,null,null,null,null,20,2]
[41,null,null,null,null,null,null,null,null,null,null,null,null,null,null,null,20,2]
[42,null,null,null,null,null,null,null,null,null,null,null,null,null,null,null,20,2]
[43,null,null,null,null,null,null,null,null,null,null,null,null,null,null,null,20,2]
[44,null,null,null,null,null,null,null,null,null,null,null,null,null,null,null,20,2]
[45,null,null,null,null,null,null,null,null,null,null,null,null,null,null,null,20,2]
[46,null,null,null,null,null,null,null,null,null,null,null,null,null,null,null,20,2]
[47,null,null,null,null,null,null,null,null,null,null,null,null,null,null,null,20,2]
[48,null,null,null,null,null,null,null,null,null,null,null,null,null,null,null,20,2]
[49,null,null,null,null,null,null,null,null,null,null,null,null,null,null,null,20,2]
[50,null,null,null,null,null,null,null,null,null,null,null,null,null,null,null,20,2]
[51,null,null,null,null,null,null,null,null,null,null,null,null,null,null,null,20,2]
[52,null,null,null,null,null,null,null,null,null,null,null,null,null,null,null,30,2]
[53,null,null,null,null,null,null,null,null,null,null,null,null,null,null,null,30,2]
[54,null,null,null,null,null,null,null,null,null,null,null,null,null,null,null,30,2]
[55,null,null,null,null,null,null,null,null,null,null,null,null,null,null,null,30,2]
[56,null,null,null,null,null,null,null,null,null,null,null,null,null,null,null,30,2]
[57,null,null,null,null,null,null,null,null,null,null,null,null,null,null,null,30,2]
[58,null,null,null,null,null,null,null,null,null,null,null,null,null,null,null,30,2]
[59,null,null,null,null,null,null,null,null,null,null,null,null,null,null,null,30,2]
[60,null,null,null,null,null,null,null,null,null,null,null,null,null,null,null,30,2]
[61,null,null,null,null,null,null,null,null,null,null,null,null,null,null,null,30,2]
[62,null,null,null,null,null,null,null,null,null,null,null,null,null,null,null,30,2]
[63,null,null,null,null,null,null,null,null,null,null,null,null,null,null,null,30,2]
[64,null,null,null,null,null,null,null,null,null,null,null,null,null,null,null,30,2]
[65,null,null,null,null,null,null,null,null,null,null,null,null,null,null,null,30,2]
[66,null,null,null,null,null,null,null,null,null,null,null,null,null,null,null,30,{"$f":"IF(O72<>0,1,2)","v":2}]
[67,null,null,null,null,null,null,null,null,null,null,null,null,null,null,null,30,2]
[68,null,null,null,null,null,null,null,null,null,null,null,null,null,null,null,30,2]
[69,null,null,null,null,null,null,null,null,null,null,null,null,null,null,null,30,2]
[70,null,null,null,null,null,null,null,null,null,null,null,null,null,null,null,30,2]
[71,null,null,null,null,null,null,null,null,null,null,null,null,null,null,null,40,2]
[72,null,null,null,null,null,null,null,null,null,null,null,null,null,null,null,40,2]
[73,null,null,null,null,null,null,null,null,null,null,null,null,null,null,null,40,2]
[74,null,null,null,null,null,null,null,null,null,null,null,null,null,null,null,40,2]
[75,null,null,null,null,null,null,null,null,null,null,null,null,null,null,null,40,2]
[76,null,null,null,null,null,null,null,null,null,null,null,null,null,null,null,40,2]
[77,null,null,null,null,null,null,null,null,null,null,null,null,null,null,null,40,2]
[78,null,null,null,null,null,null,null,null,null,null,null,null,null,null,null,40,2]
[79,null,null,null,null,null,null,null,null,null,null,null,null,null,null,null,40,2]
[80,null,null,null,null,null,null,null,null,null,null,null,null,null,null,null,40,2]
[81,null,null,null,null,null,null,null,null,null,null,null,null,null,null,null,40,2]
[82,null,null,null,null,null,null,null,null,null,null,null,null,null,null,null,40,2]
[83,null,null,null,null,null,null,null,null,null,null,null,null,null,null,null,40,2]
[84,null,null,null,null,null,null,null,null,null,null,null,null,null,null,null,40,2]
[85,null,null,null,null,null,null,null,null,null,null,null,null,null,null,null,40,2]
[86,null,null,null,null,null,null,null,null,null,null,null,null,null,null,null,40,2]
[87,null,null,null,null,null,null,null,null,null,null,null,null,null,null,null,40,2]
[88,null,null,null,null,null,null,null,null,null,null,null,null,null,null,null,40,2]
[89,null,null,null,null,null,null,null,null,null,null,null,null,null,null,null,40,2]
[90,null,null,null,null,null,null,null,null,null,null,"あり","異常なし　","なし",null,null,40,2]
[91,null,null,null,null,null,null,null,null,null,null,null,null,null,null,null,40,2]
[92,null,null,null,null,null,null,null,null,null,null,null,null,null,null,null,40,2]
[93,null,null,null,null,null,null,null,null,null,null,null,null,null,null,null,40,2]
[94,null,null,null,null,null,null,null,null,null,null,null,null,null,null,null,45,2]
[95,null,null,null,null,null,null,null,null,null,null,null,null,null,null,null,45,2]
[96,null,null,null,null,null,null,null,null,null,null,null,null,null,null,null,45,2]
[97,null,null,null,null,null,null,null,null,null,null,null,null,null,null,null,45,2]
[98,null,null,null,null,null,null,null,null,null,null,null,null,null,null,null,45,2]
[99,null,null,null,null,null,null,null,null,null,null,null,null,null,null,null,45,2]
[100,null,null,null,null,null,null,null,null,null,null,null,null,null,null,null,45,2]
[101,null,null,null,null,null,null,null,null,null,null,null,null,null,null,null,50,2]
[102,null,null,null,null,null,null,null,null,null,null,null,null,null,null,null,50,2]
[103,null,null,null,null,null,null,null,null,null,null,null,null,null,null,null,50,2]
[104,null,null,null,null,null,null,null,null,null,null,null,null,null,null,null,50,2]
[105,null,null,null,null,null,null,null,null,null,null,null,null,null,null,null,50,2]
[106,null,null,null,null,null,null,null,null,null,null,null,null,null,null,null,50,2]
[107,null,null,null,null,null,null,null,null,null,null,null,null,null,null,null,50,2]
[108,null,null,null,null,null,null,null,null,null,null,null,null,null,null,null,50,2]
[109,null,null,null,null,null,null,null,null,null,null,null,null,null,null,null,50,2]
[110,null,null,null,null,null,null,null,null,null,null,null,null,null,null,null,50,2]
[111,null,null,null,null,null,null,null,null,null,null,null,null,null,null,null,50,2]
[112,null,null,null,null,null,null,null,null,null,null,null,null,null,null,null,50,2]
[113,null,null,null,null,null,null,null,null,null,null,null,null,null,null,null,50,2]
[114,null,null,null,null,null,null,null,null,null,null,null,null,null,null,null,55,2]
[115,null,null,null,null,null,null,null,null,null,null,null,null,null,null,null,55,2]
[116,null,null,null,null,null,null,null,null,null,null,null,null,null,null,null,55,2]
[117,null,null,null,null,null,null,null,null,null,null,null,null,null,null,null,55,2]
[118,null,null,null,null,null,null,null,null,null,null,null,null,null,null,null,60,2]
[119,null,null,null,null,null,null,null,null,null,null,null,null,null,null,null,60,2]
[120,null,null,null,null,null,null,null,null,null,null,null,null,null,null,null,60,2]
[121,null,null,null,null,null,null,null,null,null,null,null,null,null,null,null,60,2]
[122,null,null,null,null,null,null,null,null,null,null,null,null,null,null,null,60,2]
[123,null,null,null,null,null,null,null,null,null,null,null,null,null,null,null,60,2]
[124,null,null,null,null,null,null,null,null,null,null,null,null,null,null,null,60,2]
[125,null,null,null,null,null,null,null,null,null,null,null,null,null,null,null,60,2]
[126,null,null,null,null,null,null,null,null,null,null,null,null,null,null,null,60,2]
[127,null,null,null,null,null,null,null,null,null,null,null,null,null,null,null,60,2]
[128,null,null,null,null,null,null,null,null,null,null,null,null,null,null,null,60,2]
[129,null,null,null,null,null,null,null,null,null,null,null,null,null,null,null,60,2]
[130,null,null,null,null,null,null,null,null,null,null,null,null,null,null,null,60,{"$f":"IF(O136<>0,1,2)","v":2}]
[131,null,null,null,null,null,null,null,null,null,null,null,null,null,null,null,60,2]
[132,null,null,null,null,null,null,null,null,null,null,null,null,null,null,null,60,2]
[133,null,null,null,null,null,null,null,null,null,null,null,null,null,null,null,60,2]
[134,null,null,null,null,null,null,null,null,null,null,null,null,null,null,null,60,2]
[135,null,null,null,null,null,null,null,null,null,null,null,null,null,null,null,60,2]
[136,null,null,null,null,null,null,null,null,null,null,null,null,null,null,null,60,2]
[137,null,null,null,null,null,null,null,null,null,null,null,null,null,null,null,60,2]
[138,null,null,null,null,null,null,null,null,null,null,null,null,null,null,null,60,2]
[139,null,null,null,null,null,null,null,null,null,null,null,null,null,null,null,60,2]
[140,null,null,null,null,null,null,null,null,null,null,null,null,null,null,null,60,2]
[141,null,null,null,null,null,null,null,null,null,null,null,null,null,null,null,60,2]
[142,null,null,null,null,null,null,null,null,null,null,null,null,null,null,null,60,2]
[143,null,null,null,null,null,null,null,null,null,null,null,null,null,null,null,60,2]
[144,null,null,null,null,null,null,null,null,null,null,null,null,null,null,null,60,2]
[145,null,null,null,null,null,null,null,null,null,null,null,null,null,null,null,60,2]
[146,null,null,null,null,null,null,null,null,null,null,null,null,null,null,null,60,2]
[147,null,null,null,null,null,null,null,null,null,null,null,null,null,null,null,60,2]
[148,null,null,null,null,null,null,null,null,null,null,null,null,null,null,null,60,2]
[149,null,null,null,null,null,null,null,null,null,null,null,null,null,null,null,60,2]
[150,null,null,null,null,null,null,null,null,null,null,null,null,null,null,null,60,2]
[151,null,null,null,null,null,null,null,null,null,null,null,null,null,null,null,60,2]
[152,null,null,null,null,null,null,null,null,null,null,null,null,null,null,null,60,2]
[153,null,null,null,null,null,null,null,null,null,null,null,null,null,null,null,70,2]
[154,null,null,null,null,null,null,null,null,null,null,null,null,null,null,null,70,2]
[155,null,null,null,null,null,null,null,null,null,null,null,null,null,null,null,70,2]
[156,null,null,null,null,null,null,null,null,null,null,null,null,null,null,null,70,2]
[157,null,null,null,null,null,null,null,null,null,null,null,null,null,null,null,70,2]
[158,null,null,null,null,null,null,null,null,null,null,null,null,null,null,null,70,2]
[159,null,null,null,null,null,null,null,null,null,null,null,null,null,null,null,70,2]
[160,null,null,null,null,null,null,null,null,null,null,null,null,null,null,null,70,2]
[161,null,null,null,null,null,null,null,null,null,null,null,null,null,null,null,70,2]
[162,null,null,null,null,null,null,null,null,null,null,null,null,null,null,null,70,2]
[163,null,null,null,null,null,null,null,null,null,null,null,null,null,null,null,70,2]
[164,null,null,null,null,null,null,null,null,null,null,null,null,null,null,null,70,2]
[165,null,null,null,null,null,null,null,null,null,null,null,null,null,null,null,70,2]
[166,null,null,null,null,null,null,null,null,null,null,null,null,null,null,null,70,2]
[167,null,null,null,null,null,null,null,null,null,null,null,null,null,null,null,75,2]
[168,null,null,null,null,null,null,null,null,null,null,null,null,null,null,null,75,2]
[169,null,null,null,null,null,null,null,null,null,null,null,null,null,null,null,75,2]
[170,null,null,null,null,null,null,null,null,null,null,null,null,null,null,null,75,2]
[171,null,null,null,null,null,null,null,null,null,null,null,null,null,null,null,75,2]
[172,null,null,null,null,null,null,null,null,null,null,null,null,null,null,null,75,2]
[173,null,null,null,null,null,null,null,null,null,null,null,null,null,null,null,75,2]
[174,null,null,null,null,null,null,null,null,null,null,null,null,null,null,null,75,2]
[175,null,null,null,null,null,null,null,null,null,null,null,null,null,null,null,75,2]
[176,null,null,null,null,null,null,null,null,null,null,null,null,null,null,null,75,2]
[177,null,null,null,null,null,null,null,null,null,null,null,null,null,null,null,75,2]
[178,null,null,null,null,null,null,null,null,null,null,null,null,null,null,null,75,2]
[179,null,null,null,null,null,null,null,null,null,null,null,null,null,null,null,75,2]
[180,null,null,null,null,null,null,null,null,null,null,null,null,null,null,null,75,2]
[181,null,null,null,null,null,null,null,null,null,null,null,null,null,null,null,75,2]
[182,null,null,null,null,null,null,null,null,null,null,null,null,null,null,null,75,2]
[183,null,null,null,null,null,null,null,null,null,null,null,null,null,null,null,99,2]
[184,null,null,null,null,null,null,null,null,null,null,null,null,null,null,null,99,2]
[185,null,null,null,null,null,null,null,null,null,null,null,null,null,null,null,99,2]
[186,null,null,null,null,null,null,null,null,null,null,null,null,null,null,null,99,2]
[187,null,null,null,null,null,null,null,null,null,null,null,null,null,null,null,99,2]
[188,null,null,null,null,null,null,null,null,null,null,null,null,null,null,null,99,2]
[189,null,null,null,null,null,null,null,null,null,null,null,null,null,null,null,99,2]
[190,null,null,null,null,null,null,null,null,null,null,null,null,null,null,null,99,2]
[191,null,null,null,null,null,null,null,null,null,null,null,null,null,null,null,99,2]
[192,null,null,null,null,null,null,null,null,null,null,null,null,null,null,null,99,2]
[193,null,null,null,null,null,null,null,null,null,null,null,null,null,null,null,99,2]
[194,null,null,null,null,null,null,null,null,null,null,null,null,null,null,null,99,{"$f":"IF(O200<>0,1,2)","v":2}]
[195,null,null,null,null,null,null,null,null,null,null,null,null,null,null,null,99,2]
[196,null,null,null,null,null,null,null,null,null,null,null,null,null,null,null,99,2]
[197,null,null,null,null,null,null,null,null,null,null,null,null,null,null,null,99,2]
[198,null,null,null,null,null,null,null,null,null,null,null,null,null,null,null,99,2]
[199,null,null,null,null,null,null,null,null,null,null,null,null,null,null,null,99,2]
[200,null,null,null,null,null,null,null,null,null,null,null,null,null,null,null,99,2]
[201,null,null,null,null,null,null,null,null,null,null,null,null,null,null,null,0,2]
[202,null,null,null,null,null,null,null,null,null,null,null,null,null,null,null,0,2]
[203,null,null,null,null,null,null,null,null,null,null,null,null,null,null,null,0,2]
[204,null,null,null,null,null,null,null,null,null,null,null,null,null,null,null,0,2]
[205,null,null,null,null,null,null,null,null,null,null,null,null,null,null,null,0,2]
[206,null,null,null,null,null,null,null,null,null,null,null,null,null,null,null,0,2]
[207,null,null,null,null,null,null,null,null,null,null,null,null,null,null,null,0,2]
[208,null,null,null,null,null,null,null,null,null,null,null,null,null,null,null,0,2]
[209,null,null,null,null,null,null,null,null,null,null,null,null,null,null,null,0,2]
[210,null,null,null,null,null,null,null,null,null,null,null,null,null,null,null,0,2]
[211,null,null,null,null,null,null,null,null,null,null,null,null,null,null,null,0,2]
[212,null,null,null,null,null,null,null,null,null,null,null,null,null,null,null,0,2]
[213,null,null,null,null,null,null,null,null,null,null,null,null,null,null,null,0,2]
[214,null,null,null,null,null,null,null,null,null,null,null,null,null,null,null,0,2]
[215,null,null,null,null,null,null,null,null,null,null,null,null,null,null,null,0,2]
[216,null,null,null,null,null,null,null,null,null,null,null,null,null,null,null,0,2]
[217,null,null,null,null,null,null,null,null,null,null,null,null,null,null,null,0,2]
[218,null,null,null,null,null,null,null,null,null,null,null,null,null,null,null,0,2]